bitfinex/quotes_ETHUSD_20251217
["timestamp","ask_amount","ask_price","bid_price","bid_amount"]
[1765936139103,13.66256478,2962.7,2962.4,0.534]
[1765936139803,0.1178,2962.5,2962.4,0.534]
[1765936140007,13.66256478,2962.7,2962.4,0.534]
[1765936140377,0.1178,2962.5,2962.4,0.534]
[1765936140870,3.37552742,2962.5,2962.4,1.0299]
[1765936141084,3.37552742,2962.5,2962.4,1.4831]
[1765936142209,3.37552742,2962.5,2962.4,1.0299]
[1765936142505,3.37552742,2962.5,2962.3,0.535]
[1765936142506,6.86885484,2962.5,2962.3,0.535]
[1765936142902,6.75285536,2962.6,2962.4,0.4959]
[1765936143110,3.37742768,2962.6,2962.4,0.4959]
[1765936143308,3.37742768,2962.6,2962.5,0.9491]
[1765936144108,3.37742768,2962.6,2962.4,0.535]
[1765936144309,3.37742768,2962.6,2962.5,0.4597]
[1765936144620,0.002,2962.6,2962.5,0.9382]
[1765936148378,0.002,2962.6,2962.5,1.42309388]
[1765936148585,0.002,2962.6,2962.5,0.9382]
[1765936150913,0.002,2962.6,2962.5,4.31372742]
[1765936151894,0.002,2962.6,2962.5,4.32386238]
[1765936152517,0.002,2962.6,2962.5,0.94833496]
[1765936152718,0.002,2962.6,2962.5,0.9382]
[1765936152890,0.002,2962.6,2962.5,1.4722]
[1765936153320,0.002,2962.6,2962.5,1.95697734]
[1765936153690,0.002,2962.6,2962.5,5.33250476]
[1765936154223,0.002,2962.6,2962.5,5.34263972]
[1765936154520,0.002,2962.6,2962.5,5.34363972]
[1765936155395,0.002,2962.6,2962.5,1.9681123]
[1765936155918,0.002,2962.6,2962.5,1.4341123]
[1765936156096,0.002,2962.6,2962.5,1.9681123]
[1765936156290,0.002,2962.6,2962.5,1.95797734]
[1765936156924,0.002,2962.6,2962.5,5.34363972]
[1765936157088,0.002,2962.6,2962.5,4.85886238]
[1765936158521,0.002,2962.6,2962.5,4.32486238]
[1765936158687,0.002,2962.6,2962.5,5.35699788]
[1765936159189,0.002,2962.6,2962.5,5.32324261]
[1765936159394,0.002,2962.6,2962.5,6.8351019]
[1765936160925,0.002,2962.6,2962.5,6.3011019]
[1765936161225,0.002,2962.6,2962.5,6.29096694]
[1765936161394,0.002,2962.6,2962.5,2.45105929]
[1765936161594,0.002,2962.6,2962.5,1.4732]
[1765936162190,0.002,2962.6,2962.5,0.001]
[1765936162191,0.1198,2962.6,2962.5,0.001]
[1765936162697,0.002,2962.6,2962.5,0.001]
[1765936162893,0.1198,2962.6,2962.5,0.001]
[1765936163826,0.002,2962.6,2962.5,0.4607]
[1765936164327,0.002,2962.6,2962.5,0.9392]
[1765936164625,0.002,2962.6,2962.5,0.4607]
[1765936164929,0.79505413,2962.6,2962.5,0.535]
[1765936165134,0.67725413,2962.6,2962.5,0.535]
[1765936165299,0.67725413,2962.6,2962.5,0.9947]
[1765936165300,0.002,2962.6,2962.5,0.9947]
[1765936167196,0.002,2962.6,2962.5,0.535]
[1765936168194,0.1198,2962.6,2962.5,0.535]
[1765936168396,0.1198,2962.6,2962.5,0.001]
[1765936168597,6.68509999,2962.6,2962.5,0.001]
[1765936168804,7.35360999,2962.6,2962.5,0.001]
[1765936169209,10.72902347,2962.6,2962.5,0.001]
[1765936170731,10.61122347,2962.6,2962.5,0.001]
[1765936174616,10.72902347,2962.6,2962.5,0.001]
[1765936176532,11.5989077,2962.6,2962.5,0.001]
[1765936177238,39.1362997,2962.6,2962.5,0.001]
[1765936177442,27.1417807,2962.6,2962.5,0.001]
[1765936177737,25.8429287,2962.6,2962.5,0.001]
[1765936178410,26.0506507,2962.6,2962.5,0.001]
[1765936178608,25.6573377,2962.6,2962.5,0.001]
[1765936179331,25.5429897,2962.6,2962.5,0.001]
[1765936180310,29.1760537,2962.6,2962.5,0.001]
[1765936181337,41.5989077,2962.6,2962.5,0.001]
[1765936187752,45.1609077,2962.6,2962.5,0.001]
[1765936187940,41.5989077,2962.6,2962.5,0.001]
[1765936190625,11.5989077,2962.6,2962.5,0.001]
[1765936190821,41.5989077,2962.6,2962.5,0.001]
[1765936192851,15.476198,2962.1,2962.0,0.001]
[1765936193158,15.60240523,2962.1,2962.0,0.001]
[1765936193727,22.73515248,2962.1,2962.0,0.001]
[1765936195242,19.89576548,2962.1,2962.0,0.001]
[1765936195455,19.55759248,2962.1,2962.0,0.001]
[1765936195759,20.57552348,2962.1,2962.0,0.001]
[1765936196053,20.23735048,2962.1,2962.0,0.001]
[1765936196757,5.14997748,2962.1,2962.0,0.001]
[1765936196966,21.90302348,2962.1,2962.0,0.001]
[1765936197264,20.51817348,2962.1,2962.0,0.001]
[1765936197842,23.31271648,2962.1,2962.0,0.001]
[1765936198746,29.75921647,2962.1,2962.0,0.001]
[1765936198952,30.40098447,2962.1,2962.0,0.001]
[1765936199161,28.98621647,2962.1,2962.0,0.001]
[1765936199861,30.40096847,2962.1,2962.0,0.001]
[1765936200878,23.52821947,2962.1,2962.0,0.001]
[1765936201071,23.29675747,2962.1,2962.0,0.001]
[1765936201372,9.82248324,2962.1,2962.0,0.9824]
[1765936201547,6.44649999,2962.1,2962.0,0.9824]
[1765936202370,3.37756053,2962.5,2962.4,0.6783]
[1765936202555,0.002,2962.5,2962.4,1.1723]
[1765936203970,0.002,2962.5,2962.4,4.54794137]
[1765936204165,0.002,2962.5,2962.4,5.37406767]
[1765936204541,0.002,2962.5,2962.4,5.34031126]
[1765936206166,0.002,2962.5,2962.4,1.96466989]
[1765936207374,0.002,2962.5,2962.4,1.7063]
[1765936210891,0.002,2962.5,2962.4,1.1723]
[1765936211089,0.1198,2962.5,2962.1,0.7238]
[1765936211371,0.1198,2962.5,2962.1,1.1775]
[1765936211884,0.1198,2962.5,2962.2,0.4537]
[1765936212376,3.37564137,2962.4,2962.1,0.7238]
[1765936212578,3.37564137,2962.4,2962.0,0.4808]
[1765936212579,0.33776414,2962.3,2962.0,0.4808]
[1765936212751,0.74326814,2962.3,2962.2,0.4798]
[1765936213644,0.74326814,2962.3,2962.0,0.001]
[1765936213645,0.86106814,2962.3,2962.0,0.001]
[1765936215076,6.75173856,2962.2,2962.0,0.001]
[1765936215284,3.37586928,2962.2,2962.1,0.4798]
[1765936220082,3.37575587,2962.3,2962.1,0.4798]
[1765936220252,6.75151174,2962.3,2962.1,0.4798]
[1765936221176,3.37575587,2962.3,2962.2,1.4675]
[1765936221376,9.82219067,2962.4,2962.3,0.9335]
[1765936223464,9.82219067,2962.4,2962.3,0.4798]
[1765936223665,13.31568135,2962.4,2962.2,0.534]
[1765936223983,9.82219067,2962.4,2962.3,0.4798]
[1765936225787,9.82219067,2962.4,2962.3,0.9335]
[1765936227287,9.93999067,2962.4,2962.3,0.001]
[1765936227660,9.82219067,2962.4,2962.3,0.001]
[1765936228463,9.82219067,2962.4,2962.3,0.4808]
[1765936229794,9.82219067,2962.4,2962.3,0.9345]
[1765936230994,6.44649999,2962.4,2962.3,0.9345]
[1765936231863,6.44649999,2962.4,2962.3,1.43792595]
[1765936232068,0.002,2962.5,2962.4,0.9335]
[1765936240678,0.002,2962.5,2962.4,4.30914137]
[1765936241005,0.002,2962.5,2962.4,4.35303274]
[1765936241210,0.002,2962.5,2962.4,4.31927633]
[1765936241400,0.002,2962.5,2962.4,9.11076327]
[1765936241600,0.002,2962.5,2962.4,10.41392855]
[1765936243400,0.002,2962.5,2962.4,15.20541549]
[1765936243789,0.002,2962.5,2962.4,15.66979572]
[1765936244408,0.002,2962.5,2962.4,11.41230878]
[1765936244781,0.002,2962.5,2962.4,6.62082184]
[1765936245010,0.002,2962.5,2962.4,3.24518047]
[1765936245216,0.002,2962.5,2962.4,2.23666528]
[1765936245419,0.002,2962.5,2962.4,1.4675]
[1765936246516,0.1198,2962.5,2962.3,0.001]
[1765936246815,0.002,2962.5,2962.4,1.002]
[1765936247312,0.002,2962.5,2962.4,1.4569]
[1765936248582,0.1198,2962.5,2962.4,0.534]
[1765936248781,0.002,2962.5,2962.4,1.002]
[1765936249115,0.002,2962.5,2962.4,1.4569]
[1765936251120,0.002,2962.5,2962.4,1.4579]
[1765936252103,0.1198,2962.5,2962.4,0.001]
[1765936252308,1.25577869,2962.5,2962.4,0.001]
[1765936252891,12.76339863,2962.5,2962.4,0.001]
[1765936253290,16.13892605,2962.5,2962.4,0.001]
[1765936253923,21.56054111,2962.5,2962.4,0.001]
[1765936254135,21.14239911,2962.5,2962.4,0.001]
[1765936254629,18.10823511,2962.5,2962.4,0.001]
[1765936254836,12.66389811,2962.5,2962.4,0.001]
[1765936254992,14.51815411,2962.5,2962.4,0.001]
[1765936255192,20.7037221,2962.5,2962.4,0.001]
[1765936255422,19.7966531,2962.5,2962.4,0.001]
[1765936255797,17.8845341,2962.5,2962.4,0.001]
[1765936256126,18.2547861,2962.5,2962.4,0.001]
[1765936256925,11.0778061,2962.5,2962.4,0.001]
[1765936257128,24.3890551,2962.5,2962.4,0.001]
[1765936257797,24.5068551,2962.5,2962.4,0.001]
[1765936258731,22.0243401,2962.5,2962.4,0.001]
[1765936259026,18.2958031,2962.5,2962.4,0.001]
[1765936259201,18.1780031,2962.5,2962.4,0.001]
[1765936260026,18.6179181,2962.5,2962.4,0.001]
[1765936260565,18.7357181,2962.5,2962.4,0.001]
[1765936260922,18.6179181,2962.5,2962.4,0.001]
[1765936261108,11.0778061,2962.5,2962.4,0.001]
[1765936262015,14.3527471,2962.5,2962.4,0.001]
[1765936262326,14.3526271,2962.5,2962.4,0.001]
[1765936263131,14.3073981,2962.5,2962.4,0.001]
[1765936263629,9.94182741,2962.5,2962.4,0.001]
[1765936265034,6.44849999,2962.5,2962.4,0.9148]
[1765936265344,9.82402741,2962.5,2962.4,0.9148]
[1765936265941,6.44849999,2962.5,2962.4,0.9148]
[1765936267258,3.37752742,2962.5,2962.4,0.9148]
[1765936268652,0.002,2962.5,2962.4,0.9148]
[1765936270057,0.002,2962.5,2962.4,1.87688736]
[1765936270356,0.002,2962.5,2962.4,6.67210463]
[1765936272547,0.002,2962.5,2962.4,2.41088736]
[1765936272752,0.002,2962.5,2962.4,1.4488]
[1765936274650,0.002,2962.5,2962.4,9.61965864]
[1765936275458,0.002,2962.5,2962.4,6.24401727]
[1765936275818,0.002,2962.5,2962.4,9.61965864]
[1765936276748,0.002,2962.5,2962.4,6.24401727]
[1765936276947,0.002,2962.5,2962.4,7.20710433]
[1765936277153,0.002,2962.5,2962.4,10.5827457]
[1765936279655,0.002,2962.5,2962.4,7.20710433]
[1765936280351,0.002,2962.5,2962.4,6.67310433]
[1765936280558,0.002,2962.5,2962.4,7.20710433]
[1765936282360,0.002,2962.5,2962.4,6.67310433]
[1765936282540,0.002,2962.5,2962.4,2.41188706]
[1765936282726,0.002,2962.5,2962.4,1.4488]
[1765936283257,0.002,2962.5,2962.4,0.9148]
[1765936283556,0.002,2962.5,2962.4,1.4488]
[1765936286257,0.002,2962.5,2962.4,0.9148]
[1765936286569,0.1198,2962.5,2962.4,0.535]
[1765936288240,3.49532742,2962.5,2962.4,0.535]
[1765936288460,3.85684016,2962.5,2962.4,0.535]
[1765936290275,3.85684016,2962.5,2962.4,0.001]
[1765936291774,3.85684016,2962.5,2962.4,0.4516]
[1765936291976,3.85684016,2962.5,2962.4,0.001]
[1765936292176,3.97464016,2962.5,2962.4,0.001]
[1765936292376,16.27543116,2962.5,2962.4,0.001]
[1765936292551,11.77006716,2962.5,2962.4,0.001]
[1765936293753,6.65989316,2962.5,2962.4,0.001]
[1765936293969,3.49532742,2962.5,2962.4,0.001]
[1765936294166,10.12640842,2962.5,2962.4,0.001]
[1765936294466,10.24420842,2962.5,2962.4,0.001]
[1765936295075,45.72472891,2962.5,2962.4,0.001]
[1765936295275,37.88202791,2962.5,2962.4,0.001]
[1765936295480,40.60338506,2962.5,2962.4,0.001]
[1765936295676,39.02927306,2962.5,2962.4,0.001]
[1765936295871,38.71352906,2962.5,2962.4,0.001]
[1765936296065,49.10367806,2962.5,2962.4,0.001]
[1765936299981,53.89889533,2962.5,2962.4,0.001]
[1765936300152,49.10367806,2962.5,2962.4,0.001]
[1765936300472,39.30969079,2962.5,2962.4,0.001]
[1765936300681,44.10490806,2962.5,2962.4,0.001]
[1765936301262,49.10367806,2962.5,2962.4,0.001]
[1765936303286,19.10367806,2962.5,2962.4,0.001]
[1765936303476,49.10492202,2962.5,2962.4,0.001]
[1765936305393,19.10492202,2962.5,2962.4,0.001]
[1765936305622,49.10492202,2962.5,2962.4,0.001]
[1765936309494,49.24025901,2962.5,2962.4,0.001]
[1765936315193,54.03672024,2962.5,2962.4,0.001]
[1765936320179,24.03672024,2962.5,2962.4,0.001]
[1765936320379,54.03672024,2962.5,2962.4,0.001]
[1765936321502,30.17636001,2962.5,2962.4,0.001]
[1765936321701,21.82784386,2962.5,2962.4,0.001]
[1765936322003,22.23334786,2962.5,2962.4,0.001]
[1765936322384,23.51361686,2962.5,2962.4,0.001]
[1765936322580,23.51331978,2962.5,2962.4,0.001]
[1765936322986,20.38820879,2962.5,2962.4,0.001]
[1765936323187,22.76477128,2962.5,2962.4,0.001]
[1765936323508,20.69214728,2962.5,2962.4,0.001]
[1765936324506,32.90038428,2962.5,2962.4,0.001]
[1765936324708,29.97570328,2962.5,2962.4,0.001]
[1765936325499,33.69492328,2962.5,2962.4,0.001]
[1765936326510,34.03304628,2962.5,2962.4,0.001]
[1765936326808,33.69492328,2962.5,2962.4,0.001]
[1765936327010,31.75278428,2962.5,2962.4,0.001]
[1765936327411,32.09090728,2962.5,2962.4,0.001]
[1765936328416,32.33007328,2962.5,2962.4,0.001]
[1765936329086,10.92951164,2962.5,2962.4,0.001]
[1765936329583,10.81171164,2962.5,2962.4,0.001]
[1765936330014,14.01225364,2962.5,2962.4,0.001]
[1765936330218,10.40620764,2962.5,2962.4,0.001]
[1765936330509,9.82402741,2962.5,2962.4,0.4885]
[1765936330709,0.002,2962.5,2962.4,0.9628]
[1765936331510,0.002,2962.5,2962.4,0.001]
[1765936332298,0.002,2962.5,2962.4,0.9628]
[1765936334819,0.002,2962.5,2962.4,0.4885]
[1765936334991,0.1198,2962.5,2962.4,0.001]
[1765936335191,0.002,2962.5,2962.4,0.4885]
[1765936335392,0.1198,2962.5,2962.4,0.001]
[1765936335916,0.2376,2962.5,2962.4,0.001]
[1765936336707,24.80848951,2962.5,2962.4,0.001]
[1765936336907,12.95329551,2962.5,2962.4,0.001]
[1765936337421,13.68309742,2962.5,2962.4,0.001]
[1765936337719,14.85686842,2962.5,2962.4,0.001]
[1765936337920,13.16094542,2962.5,2962.4,0.001]
[1765936338223,9.89829542,2962.5,2962.4,0.001]
[1765936338721,3.49532742,2962.5,2962.4,0.001]
[1765936338923,12.84849242,2962.5,2962.4,0.001]
[1765936339816,17.76865603,2962.5,2962.4,0.001]
[1765936340829,35.29393603,2962.5,2962.4,0.001]
[1765936341423,41.74043602,2962.5,2962.4,0.001]
[1765936342736,42.14594002,2962.5,2962.4,0.001]
[1765936344538,39.13578002,2962.5,2962.4,0.001]
[1765936344836,12.14594002,2962.5,2962.4,0.001]
[1765936345024,39.48076702,2962.5,2962.4,0.001]
[1765936345223,32.87772602,2962.5,2962.4,0.001]
[1765936345905,38.28879602,2962.5,2962.4,0.001]
[1765936346130,35.87069602,2962.5,2962.4,0.001]
[1765936346331,34.09202202,2962.5,2962.4,0.001]
[1765936346935,12.14594002,2962.5,2962.4,0.001]
[1765936347121,35.11515702,2962.5,2962.4,0.001]
[1765936347322,28.16692002,2962.5,2962.4,0.001]
[1765936347527,27.21025402,2962.5,2962.4,0.001]
[1765936348027,31.28357202,2962.5,2962.4,0.001]
[1765936348733,25.87064202,2962.5,2962.4,0.001]
[1765936349027,26.79636702,2962.5,2962.4,0.001]
[1765936350124,26.84013502,2962.5,2962.4,0.001]
[1765936351027,12.14594002,2962.5,2962.4,0.001]
[1765936351228,24.26640302,2962.5,2962.4,0.001]
[1765936352037,31.10148423,2961.4,2961.1,0.001]
[1765936352225,41.22781253,2961.4,2961.1,0.001]
[1765936352425,36.43164838,2961.4,2961.1,0.001]
[1765936353437,36.56703759,2961.4,2961.1,0.001]
[1765936354035,39.94381884,2961.4,2961.1,0.001]
[1765936354714,41.62462745,2961.4,2961.1,0.001]
[1765936355111,11.62462745,2961.4,2961.1,0.001]
[1765936355324,41.62462745,2961.4,2961.1,0.001]
[1765936356342,41.09062745,2961.4,2961.1,0.001]
[1765936356644,41.62462745,2961.4,2961.1,0.001]
[1765936358234,24.56369369,2961.4,2961.1,0.001]
[1765936358544,0.01013496,2961.8,2961.1,0.001]
[1765936358545,3.873236,2962.2,2961.4,0.4855]
[1765936358727,11.425959,2962.3,2961.4,0.4855]
[1765936358912,10.824054,2962.3,2961.4,0.4855]
[1765936359112,6.618435,2962.3,2961.4,0.4855]
[1765936359326,2.596696,2962.1,2961.4,0.4855]
[1765936360346,3.37609723,2962.0,2961.4,0.4855]
[1765936360829,6.75219446,2962.0,2961.4,0.4855]
[1765936361742,3.37609723,2962.0,2961.9,0.4666]
[1765936362948,3.37601089,2962.1,2961.9,0.4666]
[1765936363835,3.37601089,2962.1,2961.7,0.4855]
[1765936364333,6.75202178,2962.1,2961.7,0.4855]
[1765936364943,18.33924115,2962.0,2961.4,0.4855]
[1765936365254,30.637104,2961.4,2961.3,0.001]
[1765936365455,36.4370468,2961.4,2961.3,0.001]
[1765936365754,30.633104,2961.2,2961.1,0.001]
[1765936365954,30.633104,2961.2,2961.0,0.001]
[1765936365955,40.69860937,2961.1,2961.0,0.001]
[1765936366133,31.20228423,2960.9,2960.1,0.001]
[1765936366457,0.627104,2960.6,2960.1,0.001]
[1765936366759,40.69460937,2960.6,2960.1,0.001]
[1765936367152,44.07230308,2960.6,2960.1,0.001]
[1765936367450,40.89357571,2960.6,2960.1,0.001]
[1765936368531,41.42857571,2960.6,2960.1,0.001]
[1765936368731,37.02363798,2960.6,2960.1,0.001]
[1765936369058,37.55863798,2960.6,2960.1,0.001]
[1765936369753,43.98303575,2960.6,2960.1,0.001]
[1765936372330,44.99872991,2960.6,2960.1,0.001]
[1765936374349,14.99872991,2960.6,2960.1,0.001]
[1765936374548,44.99872991,2960.6,2960.1,0.001]
[1765936375254,14.99872991,2960.6,2960.1,0.001]
[1765936375458,44.99872991,2960.6,2960.1,0.001]
[1765936376659,44.46372991,2960.6,2960.1,0.001]
[1765936376829,44.99872991,2960.6,2960.1,0.001]
[1765936381383,51.45872991,2960.6,2960.1,0.001]
[1765936381676,50.92372991,2960.6,2960.1,0.001]
[1765936382189,51.45872991,2960.6,2960.1,0.001]
[1765936384269,50.92372991,2960.6,2960.1,0.001]
[1765936384449,21.45872991,2960.6,2960.1,0.001]
[1765936384655,51.45872991,2960.6,2960.1,0.001]
[1765936386379,45.03433214,2960.6,2960.1,0.001]
[1765936386574,44.49933214,2960.6,2960.1,0.001]
[1765936386779,44.01863798,2960.6,2960.1,0.001]
[1765936388095,45.03438373,2960.6,2960.1,0.001]
[1765936390660,15.03438373,2960.6,2960.1,0.001]
[1765936390974,45.03438373,2960.6,2960.1,0.001]
[1765936391385,54.64310159,2960.6,2960.1,0.001]
[1765936391684,54.64485145,2960.6,2960.1,0.001]
[1765936392084,54.64485145,2960.6,2959.9,0.001]
[1765936392085,40.70195195,2960.0,2959.9,0.001]
[1765936392259,42.89171809,2960.0,2959.9,0.001]
[1765936392789,31.08548423,2958.3,2958.2,0.05966998]
[1765936392953,36.42571809,2958.3,2958.2,0.05966998]
[1765936393579,35.000804,2958.3,2958.2,0.05966998]
[1765936394282,37.55526404,2958.3,2958.2,0.05966998]
[1765936395057,37.55626404,2958.3,2958.2,0.05966998]
[1765936395252,14.526672,2958.3,2958.2,0.05966998]
[1765936395487,12.527104,2958.3,2958.2,0.05966998]
[1765936395786,13.873343,2958.3,2958.2,0.05966998]
[1765936395956,11.498729,2958.3,2958.2,0.05966998]
[1765936396285,10.106529,2958.3,2958.2,0.05966998]
[1765936396869,15.820239,2958.3,2958.2,0.05966998]
[1765936397463,8.548251,2958.3,2958.2,0.05966998]
[1765936397972,9.968222,2958.3,2958.2,0.05966998]
[1765936398961,10.889534,2958.3,2958.2,0.05966998]
[1765936399193,9.96811,2958.3,2958.2,0.05966998]
[1765936399787,10.020142,2958.3,2958.2,0.05966998]
[1765936399988,8.57591,2958.3,2958.2,0.05966998]
[1765936400862,25.6847,2958.3,2958.2,0.05966998]
[1765936401393,25.001466,2958.3,2958.2,0.05966998]
[1765936401892,25.001837,2958.3,2958.2,0.05966998]
[1765936402893,34.465804,2958.3,2958.2,0.05966998]
[1765936407187,37.84475315,2958.3,2958.2,0.05966998]
[1765936408072,40.92591827,2958.2,2957.5,0.001]
[1765936408903,41.0614699,2958.2,2957.5,0.001]
[1765936409106,11.0614699,2958.2,2957.5,0.001]
[1765936409272,41.61485099,2958.2,2957.5,0.001]
[1765936409768,42.30470362,2958.2,2957.5,0.001]
[1765936410101,41.80139286,2958.2,2957.5,0.001]
[1765936410300,0.2156,2957.6,2957.5,0.001]
[1765936410502,44.51322394,2957.6,2957.5,0.001]
[1765936410684,47.89217309,2957.6,2957.5,0.001]
[1765936410892,41.46043338,2957.6,2957.5,0.001]
[1765936411078,41.39753338,2957.6,2957.5,0.001]
[1765936411619,41.93353338,2957.6,2957.5,0.001]
[1765936412234,41.93353338,2957.6,2955.8,0.001]
[1765936412235,0.2146,2955.9,2955.8,0.001]
[1765936412380,31.19128423,2955.9,2955.8,0.001]
[1765936412925,31.19128423,2955.9,2953.1,3.38618913]
[1765936412926,0.46438023,2955.5,2954.1,0.6547]
[1765936413081,0.46438023,2955.2,2954.2,0.4731]
[1765936413278,24.23446,2955.5,2954.4,0.4731]
[1765936413512,24.34026,2955.5,2954.4,0.4731]
[1765936413707,0.405504,2955.1,2954.4,0.4731]
[1765936414099,6.76773144,2955.2,2954.4,0.4731]
[1765936414415,0.46438023,2955.1,2955.0,0.913]
[1765936416012,0.46438023,2955.1,2955.0,0.4528]
[1765936416213,3.38409475,2955.0,2954.9,0.4629]
[1765936416716,6.7681895,2955.0,2954.7,0.4802]
[1765936417046,6.7681895,2955.0,2954.4,1.0172]
[1765936417338,6.7681895,2955.0,2954.5,0.4802]
[1765936417708,3.38409475,2955.0,2954.5,0.4802]
[1765936417913,6.7681895,2955.0,2954.5,0.4802]
[1765936418150,3.78959875,2955.0,2954.9,0.4629]
[1765936418348,3.38409475,2955.0,2954.9,0.9431]
[1765936418715,6.83992775,2955.0,2954.9,0.9431]
[1765936418927,6.83992775,2955.0,2954.9,0.4629]
[1765936418928,3.38409475,2955.0,2954.9,0.4629]
[1765936419124,6.7681895,2955.0,2954.6,0.4802]
[1765936419328,3.38409475,2955.0,2954.9,0.4629]
[1765936420720,6.00803075,2955.0,2954.9,0.4629]
[1765936421047,3.38409475,2955.0,2954.9,0.4629]
[1765936422720,3.84841038,2955.1,2955.0,0.4629]
[1765936422927,3.84841038,2955.1,2955.0,0.9431]
[1765936424154,3.84841038,2955.1,2955.0,0.4629]
[1765936424854,7.23244053,2955.1,2954.7,0.4802]
[1765936425236,3.84841038,2955.1,2955.0,0.4629]
[1765936427554,7.23244053,2955.1,2954.9,0.002]
[1765936429419,3.48989475,2955.0,2954.9,0.002]
[1765936430255,3.38409475,2955.0,2954.9,0.4649]
[1765936430755,3.48989475,2955.0,2954.9,0.002]
[1765936432944,14.07248349,2955.0,2954.9,0.002]
[1765936433456,35.19940949,2955.0,2954.9,0.002]
[1765936434844,35.09360949,2955.0,2954.9,0.002]
[1765936435028,35.19940949,2955.0,2954.9,0.002]
[1765936435854,18.69591949,2955.0,2954.9,0.002]
[1765936436245,16.63108849,2955.0,2954.9,0.002]
[1765936436430,19.06913349,2955.0,2954.9,0.002]
[1765936437128,18.96333349,2955.0,2954.9,0.002]
[1765936437327,31.03751849,2955.0,2954.9,0.002]
[1765936437533,16.22835898,2955.0,2954.9,0.002]
[1765936437732,16.63386298,2955.0,2954.9,0.002]
[1765936438356,23.57492598,2955.0,2954.9,0.002]
[1765936438554,7.80630698,2955.0,2954.9,0.002]
[1765936438755,7.36416998,2955.0,2954.9,0.002]
[1765936438957,3.38409475,2955.0,2954.9,0.4649]
[1765936439332,3.38409475,2955.0,2954.9,0.9451]
[1765936440041,3.38375122,2955.3,2955.2,0.9431]
[1765936440241,0.1058,2955.0,2954.9,0.002]
[1765936440559,11.97966623,2955.0,2954.9,0.002]
[1765936441462,31.08148423,2955.0,2954.9,1.525e-05]
[1765936442067,34.46557898,2955.0,2954.9,1.525e-05]
[1765936442363,44.30452813,2955.0,2954.9,1.525e-05]
[1765936443065,7.48821875,2955.0,2954.9,1.525e-05]
[1765936443248,7.95259898,2955.0,2954.9,1.525e-05]
[1765936443562,4.46557898,2955.0,2954.9,1.525e-05]
[1765936443769,25.81131798,2955.0,2954.9,1.525e-05]
[1765936444589,4.46557898,2955.0,2954.9,1.525e-05]
[1765936444761,35.25053469,2955.0,2954.9,1.525e-05]
[1765936447583,33.84847498,2955.0,2954.9,1.525e-05]
[1765936447785,3.38363673,2955.4,2954.9,0.47831525]
[1765936447985,3.38363673,2955.4,2955.1,0.6401]
[1765936448347,6.76658658,2955.7,2955.1,0.6401]
[1765936448894,0.46438023,2955.6,2955.1,0.6401]
[1765936449089,3.38329329,2955.7,2955.1,0.6401]
[1765936449262,6.76658658,2955.7,2955.3,0.4554]
[1765936449462,0.46438023,2955.6,2955.5,0.4783]
[1765936449656,3.38329329,2955.7,2955.5,0.4783]
[1765936449657,3.38329329,2955.7,2955.6,0.4783]
[1765936449855,3.38421139,2955.8,2955.7,0.4783]
[1765936450098,6.76742278,2955.8,2955.1,0.1847]
[1765936450395,3.38352224,2955.5,2955.0,1.1781]
[1765936450850,3.38352224,2955.5,2955.1,0.4554]
[1765936451050,3.38352224,2955.5,2955.1,0.91162253]
[1765936451246,3.38352224,2955.5,2955.1,0.4554]
[1765936451664,6.76704448,2955.5,2955.1,0.4554]
[1765936452491,16.293979,2955.5,2955.1,0.4554]
[1765936452990,15.398479,2955.5,2955.1,0.4554]
[1765936453504,13.631479,2955.5,2955.1,0.4554]
[1765936453704,8.793783,2955.5,2955.1,0.94042925]
[1765936454009,3.38340776,2955.6,2955.5,0.9337]
[1765936454372,3.38340776,2955.6,2955.5,0.4783]
[1765936454970,3.78879729,2955.7,2955.5,0.4783]
[1765936456985,3.78879729,2955.7,2955.1,0.94042925]
[1765936456986,9.24810552,2955.7,2955.6,0.4783]
[1765936457180,0.46438023,2955.7,2955.6,0.4783]
[1765936457402,3.38421169,2955.8,2955.6,0.4783]
[1765936457583,3.38421169,2955.8,2955.7,0.4783]
[1765936457780,5.85621169,2955.8,2955.7,0.4783]
[1765936457988,3.49001169,2955.8,2955.4,0.4554]
[1765936459412,3.49001169,2955.8,2955.4,0.30259385]
[1765936462223,6.87322338,2955.8,2955.4,0.30259385]
[1765936462379,3.49001169,2955.8,2955.4,0.30259385]
[1765936463079,6.87322338,2955.8,2955.4,0.30259385]
[1765936463911,3.49001169,2955.8,2955.4,0.30259385]
[1765936465345,6.87322338,2955.8,2955.4,0.30259385]
[1765936467541,6.87322338,2955.8,2955.5,0.9924]
[1765936469630,8.78454369,2955.8,2955.7,0.9337]
[1765936469830,3.38421169,2955.8,2955.7,0.9337]
[1765936470299,7.02602338,2955.8,2955.5,0.537]
[1765936471126,3.38421169,2955.8,2955.7,0.4783]
[1765936471433,3.38421169,2955.8,2955.7,0.9337]
[1765936471630,0.001,2955.8,2955.7,0.9337]
[1765936472402,0.001,2955.8,2955.7,0.4783]
[1765936472635,0.001,2955.8,2955.7,1.0153]
[1765936473011,0.001,2955.8,2955.7,1.4707]
[1765936476760,0.001,2955.8,2955.7,1.95612113]
[1765936476910,0.001,2955.8,2955.7,1.4707]
[1765936477945,0.001,2955.8,2955.7,4.85399329]
[1765936478718,0.001,2955.8,2955.7,4.88782622]
[1765936479222,0.001,2955.8,2955.7,4.85399329]
[1765936479446,0.001,2955.8,2955.7,4.31699329]
[1765936479618,0.001,2955.8,2955.7,4.85399329]
[1765936480223,0.001,2955.8,2955.7,6.35243253]